lending/lending_fUSD_20240512
["ID","MTS","AMOUNT","RATE_DAILY","PERIOD"]
[326839745,1715497939832,145.53490558,4.706e-05,2]
[326839746,1715497939853,8.93018884,4.706e-05,2]
[326839747,1715498037466,-2184.52280122,5.052e-05,2]
[326839748,1715498038710,158.00157636,5.051e-05,2]
[326839749,1715498042884,-169.16513921,5.053e-05,2]
[326839750,1715498043283,-431.83486079,5.053e-05,2]
[326839751,1715498043307,-155.0,5.053e-05,2]
[326839752,1715498043330,-3025.92588209,5.053e-05,2]
[326839753,1715498051119,-1271.62688925,5.054e-05,2]
[326839754,1715498051141,-1624.03422621,5.055e-05,2]
[326839755,1715498051164,-168.61528728,5.057e-05,2]
[326839756,1715498133926,-944.82524684,5.057e-05,2]
[326839757,1715498133950,-7513.22628068,5.057e-05,2]
[326839758,1715498133974,-20928.8955059,5.057e-05,2]
[326839759,1715498144313,150.0,5.057e-05,2]
[326839760,1715498144696,150.0,5.057e-05,2]
[326839761,1715498144723,150.0,5.057e-05,2]
[326839762,1715498144751,150.0,5.057e-05,2]
[326839763,1715498144777,150.0,5.057e-05,2]
[326839764,1715498144800,150.0,5.057e-05,2]
[326839765,1715498144825,44.42917762,5.057e-05,2]
[326839766,1715498147608,150.0,5.057e-05,2]
[326839767,1715498147631,150.0,5.057e-05,2]
[326839768,1715498147655,150.0,5.057e-05,2]
[326839769,1715498147677,150.0,5.057e-05,2]
[326839770,1715498147699,150.0,5.057e-05,2]
[326839771,1715498147722,150.0,5.057e-05,2]
[326839772,1715498147746,150.0,5.057e-05,2]
[326839773,1715498147769,150.0,5.057e-05,2]
[326839774,1715498147793,150.0,5.057e-05,2]
[326839775,1715498147815,150.0,5.057e-05,2]
[326839776,1715498147837,150.0,5.057e-05,2]
[326839777,1715498147861,150.0,5.057e-05,2]
[326839778,1715498147882,150.0,5.057e-05,2]
[326839779,1715498147905,150.0,5.057e-05,2]
[326839780,1715498147927,146.60442867,5.057e-05,2]
[326839781,1715498153417,3.39557133,5.057e-05,2]
[326839782,1715498153440,150.0,5.057e-05,2]
[326839783,1715498159198,150.0,4.046e-05,2]
[326839784,1715498159221,150.0,4.046e-05,2]
[326839785,1715498159243,150.0,4.046e-05,2]
[326839786,1715498159265,96.87748124,4.046e-05,2]
[326839787,1715498164537,240.0942125,3.793e-05,2]
[326839788,1715498177119,637.79171237,4.046e-05,2]
[326839808,1715498528410,-4500.0,5.055e-05,2]
[326839810,1715498535719,-150.0,5.056e-05,2]
[326839811,1715498535740,-1135.42200731,5.056e-05,2]
[326839812,1715498535766,-1196.60442865,5.057e-05,2]
[326839813,1715498535787,-366.46658837,5.057e-05,2]
[326839814,1715498535807,-155.0,5.057e-05,2]
[326839815,1715498535828,-155.0,5.057e-05,2]
[326839816,1715498548183,155.03596587,4.736e-05,2]
[326839818,1715498556433,150.0,5e-05,2]
[326839819,1715498556455,5.73830075,5e-05,2]
[326839822,1715498598137,191.11282967,5e-05,2]
[326839825,1715498673205,-245.13174777,5.055e-05,2]
[326839826,1715498673571,-366.31861737,5.055e-05,2]
[326839827,1715498673594,-155.28079356,5.484e-05,2]
[326839828,1715498673616,-168.61528728,6.356e-05,2]
[326839829,1715498694221,-157.30064801,6.437e-05,2]
[326839830,1715498694243,-168.75648501,7.024e-05,2]
[326839831,1715498694265,-155.28079358,7.141e-05,2]
[326839832,1715498741015,3518.6620734,6.356e-05,2]
[326839833,1715498741039,4000.0,6.356e-05,2]
[326839834,1715498741061,4000.0,6.356e-05,2]
[326839835,1715498741086,4000.0,6.356e-05,2]
[326839836,1715498741109,4000.0,6.356e-05,2]
[326839837,1715498741130,4000.0,6.356e-05,2]
[326839838,1715498741152,3064.65355402,6.356e-05,2]
[326839839,1715498741173,4000.0,6.356e-05,2]
[326839840,1715498741195,4000.0,6.356e-05,2]
[326839841,1715498741216,4000.0,6.356e-05,2]
[326839842,1715498741237,1939.44339472,6.356e-05,2]
[326839845,1715498787120,-168.61528728,8.482e-05,2]
[326839846,1715498787142,-168.61528728,8.635e-05,2]
[326839847,1715498787165,-155.0,9.219e-05,2]
[326839848,1715498787188,-21246.50570725,9.219e-05,2]
[326839849,1715498793913,539.01402092,8.481e-05,2]
[326839850,1715498850303,157.30064801,5.55e-05,2]
[326839852,1715498954239,-534.10085754,6.552e-05,2]
[326839853,1715498954259,-155.92064256,6.553e-05,2]
[326839854,1715498954281,-158.5056697,7.486e-05,2]
[326839855,1715498954302,-115.57837625,8.041e-05,2]
[326839856,1715498973173,-39.45758962,8.041e-05,2]
[326839857,1715498973231,-136.99059312,9.67e-05,2]
[326839861,1715499031885,-13.99940688,9.67e-05,2]
[326839862,1715499031895,-150.0,9.9e-05,2]
[326839863,1715499031905,-204.44716233,0.0001,2]
[326839864,1715499031914,-164.32206235,0.00010201,2]
[326839865,1715499031981,-488.48793765,0.00010201,2]
[326839866,1715499031990,-1144.61961208,0.00010217,2]
[326839867,1715499032001,-355.38038792,0.00010217,2]
[326839868,1715499032010,-66.56905805,0.00010242,2]
[326839869,1715499032022,-183.43094195,0.00010242,2]
[326839870,1715499032030,-408.39555905,0.00010242,2]
[326839871,1715499032043,-991.29444095,0.00010242,2]
[326839872,1715499032051,-499.99,0.00010242,2]
[326839873,1715499032061,-758.29,0.00010363,2]
[326839874,1715499032070,-168.61528728,0.00010414,2]
[326839875,1715499032079,-150.0,0.00010416,2]
[326839876,1715499032089,-2497.44,0.00010418,2]
[326839877,1715499032098,-250.0,0.00010449,2]
[326839878,1715499032108,-296.5509823,0.00010485,2]
[326839879,1715499032119,-1563.5390177,0.00010485,2]
[326839880,1715499032128,-152.49,0.00010557,2]
[326839881,1715499032137,-5617.7819972,0.00010652,2]
[326839882,1715499032148,-4031.34297496,0.00010652,2]
[326839883,1715499032218,-6178.27209133,0.00010652,2]
[326839884,1715499032230,-466.76536021,0.00010652,2]
[326839885,1715499032241,-463.05,0.00010652,2]
[326839886,1715499032255,-819.28,0.00010652,2]
[326839896,1715499032344,-703.37788318,0.00010652,2]
[326839898,1715499032356,-1007.15591784,0.00010652,2]
[326839939,1715499037798,-4612.97377528,0.00010652,2]
[326839941,1715499037807,-166.29,0.00010668,2]
[326839942,1715499037817,-152.49,0.0001074,2]
[326839944,1715499037827,-1852.42,0.00010779,2]
[326839947,1715499037836,-1000.0,0.00010789,2]
[326839949,1715499037846,-787.66046408,0.0001089,2]
[326839950,1715499037855,-152.49,0.00010924,2]
[326839951,1715499037865,-152.49,0.00011107,2]
[326839952,1715499037874,-155.03596587,0.0001176,2]
[326839953,1715499037884,-182.90328974,0.00011886,2]
[326839954,1715499037893,-2722.75,0.00011886,2]
[326839955,1715499037903,-166.75281994,0.00011965,2]
[326839956,1715499037912,-187.0,0.00012033,2]
[326839957,1715499037922,-1101.59593001,0.00012136,2]
[326839958,1715499037932,-1000.0,0.00012136,2]
[326839959,1715499037941,-1000.0,0.00012137,2]
[326839960,1715499037951,-1067.0673,0.0001268,2]
[326839961,1715499037960,-1000.0,0.0001268,2]
[326839962,1715499037969,-30117.66616491,0.0001268,2]
[326839963,1715499037981,-1220.20775906,0.0001268,2]
[326839964,1715499037992,-406.46916604,0.0001268,2]
[326839965,1715499038003,-692.79472096,0.0001268,2]
[326839966,1715499038037,-2387.45688903,0.0001268,2]
[326839967,1715499038047,-881.9208,0.00012794,2]
[326839968,1715499038056,-1310.64177079,0.00012811,2]
[326839969,1715499038067,-252.42806238,0.00012811,2]
[326839970,1715499038076,-1173.51640996,0.00012864,2]
[326839971,1715499038087,-2329.73005019,0.00012864,2]
[326839972,1715499038097,-1965.10124,0.0001287,2]
[326839973,1715499038106,-7055.17012401,0.00012894,2]
[326839974,1715499038117,-1602.93844467,0.00012894,2]
[326839976,1715499038521,-428.61941707,0.00012894,2]
[326839977,1715499038533,-315.19030927,0.00012894,2]
[326839982,1715499039951,-1341.358607,0.00012727,2]
[326839986,1715499040154,-252.93450271,0.00012727,2]
[326839987,1715499040167,-1289.56035325,0.00012829,2]
[326839988,1715499040178,-25698.33942928,0.00012894,2]
[326839989,1715499040187,-166.81757453,0.00012898,2]
[326839990,1715499040197,-157.60689553,0.00012898,2]
[326839991,1715499040207,-155.0,0.00012898,2]
[326839992,1715499040216,-460.035843,0.00012898,2]
[326839993,1715499040226,-4273.24212817,0.00012898,2]
[326839994,1715499040236,-2183.25094686,0.00012898,2]
[326839995,1715499040245,-157.90100222,0.00012898,2]
[326839996,1715499040258,-155.56243822,0.00012898,2]
[326839997,1715499040269,-1482.49936847,0.00012898,2]
[326839998,1715499040278,-1301.82110764,0.00012898,2]
[326839999,1715499040288,-308.52951489,0.00012898,2]
[326840000,1715499040298,-180.18754442,0.00012898,2]
[326840001,1715499040307,-314.81387529,0.00012899,2]
[326840002,1715499040316,-168.97879648,0.000129,2]
[326840003,1715499040325,-196607.84845976,0.000129,2]
[326840004,1715499040596,-403.27935597,0.000129,2]
[326840005,1715499040607,-2818.81660001,0.000129,2]
[326840008,1715499042735,-1519.9672614,0.000129,2]
[326840009,1715499042747,-451.9375,0.000129,2]
[326840032,1715499042892,-1450.83593357,0.000129,2]
[326840034,1715499042903,-348.64959659,0.000129,2]
[326840038,1715499042972,-1067.81353758,0.000129,2]
[326840039,1715499042983,-455.24917089,0.000129,2]
[326840040,1715499043010,-0.00313276,0.000129,2]
[326840041,1715499043022,-1126.43968259,0.000129,2]
[326840042,1715499043240,-879.82490236,0.000129,2]
[326840043,1715499043251,-37869.33486652,0.000129,2]
[326840044,1715499043261,-500.0,0.000129,2]
[326840045,1715499043270,-16375.04017131,0.000129,2]
[326840046,1715499043279,-6035.2424,0.000129,2]
[326840047,1715499043288,-343.57805772,0.000129,2]
[326840048,1715499043298,-184.81018093,0.000129,2]
[326840049,1715499043307,-334.7905484,0.00012902,2]
[326840050,1715499043316,-269.4852325,0.00012989,2]
[326840051,1715499043325,-206.1401672,0.00012991,2]
[326840052,1715499043334,-227.255189,0.00012991,2]
[326840053,1715499043343,-248.3702107,0.00012991,2]
[326840054,1715499043353,-320.0247412,0.00012998,2]
[326840055,1715499043362,-155.0,0.00012998,2]
[326840056,1715499043372,-329.53898838,0.00012998,2]
[326840057,1715499043381,-50001.62610135,0.00013,2]
[326840058,1715499043390,-202134.45386335,0.00013,2]
[326840059,1715499043401,-5584.90864252,0.00013,2]
[326840086,1715499045879,-360.08234564,0.00013,2]
[326840088,1715499046002,-0.05438664,0.00013,2]
[326840089,1715499046034,-61664.33843673,0.00013,2]
[326840090,1715499046046,-1130.82038975,0.00013,2]
[326840091,1715499046057,-727.95,0.00013,2]
[326840092,1715499046069,-3431.15037639,0.00013,2]
[326840093,1715499046080,-959.66047797,0.00013,2]
[326840094,1715499046201,-1795.36741921,0.00013,2]
[326840095,1715499046214,-887.83745684,0.00013,2]
[326840096,1715499046226,-536.3179806,0.00013,2]
[326840097,1715499046352,-822.913,0.00013,2]
[326840109,1715499064782,1031.12853337,0.00025,120]
[326840115,1715499593413,-155.0,9.667e-05,2]
[326840116,1715499593436,-566.162403,9.668e-05,2]
[326840117,1715499593458,-789.65556014,9.669e-05,2]
[326840118,1715499603880,-5991.93369382,9.67e-05,2]
[326840119,1715499603902,-150.0,9.999e-05,2]
[326840120,1715499603923,-20929.25755737,0.0001,2]
[326840121,1715499608509,235.40355057,9.999e-05,2]
[326840122,1715499699056,-11208.79533405,9.999e-05,2]
[326840129,1715500154158,-1626.9020258,7.498e-05,2]
[326840130,1715500161082,-399.0024195,7.498e-05,2]
[326840131,1715500161101,-283.75807526,7.499e-05,2]
[326840164,1715500232961,-1376.88012733,7.499e-05,2]
[326840165,1715500232970,-155.0,7.499e-05,2]
[326840166,1715500232979,-3.79142474,7.499e-05,2]
[326840167,1715500232988,-601.41018386,9.257e-05,2]
[326840168,1715500232997,-155.0,9.999e-05,2]
[326840169,1715500233006,-944.82524684,9.999e-05,2]
[326840170,1715500233016,-150.0,0.00010986,2]
[326840171,1715500233026,-750.59667665,0.00011,2]
[326840172,1715500233035,-150.0,0.00011045,2]
[326840173,1715500233044,-2686.76,0.00011065,2]
[326840174,1715500233054,-1318.76,0.00011081,2]
[326840175,1715500233063,-250.0,0.00011081,2]
[326840176,1715500233072,-504.85,0.00011123,2]
[326840177,1715500233081,-157.62223489,0.00011156,2]
[326840178,1715500233090,-908.76,0.00011188,2]
[326840179,1715500233100,-1645.28,0.00011205,2]
[326840180,1715500233108,-499.99,0.00011205,2]
[326840181,1715500233117,-250.0,0.00011213,2]
[326840182,1715500233126,-600.97,0.00011245,2]
[326840183,1715500233135,-15003.4989023,0.00011271,2]
[326840184,1715500233146,-2401.13681457,0.00011271,2]
[326840185,1715500233209,-1207.64325977,0.00011271,2]
[326840186,1715500233220,-301.44505381,0.00011271,2]
[326840187,1715500233242,-965.895,0.00011271,2]
[326840188,1715500233275,-438.97877864,0.00011271,2]
[326840200,1715500237903,-3581.40219091,0.00011271,2]
[326840201,1715500237914,-159.3,0.0001135,2]
[326840202,1715500237923,-108.76173964,0.00011447,2]
[326840203,1715500237935,-48.86049522,0.00011447,2]
[326840204,1715500237945,-547.47168231,0.0001168,2]
[326840205,1715500237985,-452.52831769,0.0001168,2]
[326840206,1715500237994,-155.0,0.00011697,2]
[326840207,1715500238003,-157.62223486,0.00011737,2]
[326840208,1715500238012,-2173.202768,0.00012,2]
[326840209,1715500238021,-172.65590637,0.00012013,2]
[326840210,1715500238030,-157.62223486,0.00012028,2]
[326840211,1715500238039,-1000.0,0.0001209,2]
[326840212,1715500238048,-1000.0,0.00012154,2]
[326840213,1715500238057,-157.62223486,0.00012318,2]
[326840214,1715500238067,-1653.64,0.00012332,2]
[326840215,1715500238075,-1000.0,0.00012339,2]
[326840216,1715500238084,-1195.13042286,0.00012348,2]
[326840217,1715500238093,-150.99,0.00012348,2]
[326840218,1715500238102,-158.9343603,0.00012511,2]
[326840219,1715500238112,-406.38372005,0.00012545,2]
[326840220,1715500238122,-157.62223486,0.00012609,2]
[326840221,1715500238131,-3502.08126514,0.00012689,2]
[326840222,1715500238141,-1957.96315914,0.0001278,2]
[326840223,1715500238158,-958.8455265,0.0001278,2]
[326840224,1715500238171,-2368.09616802,0.0001278,2]
[326840225,1715500238184,-2491.19304026,0.0001278,2]
[326840226,1715500238309,-580.00170608,0.0001278,2]
[326840227,1715500238319,-173.25302519,0.00012869,2]
[326840228,1715500238330,-327.10272537,0.00012875,2]
[326840229,1715500238354,-1235.35171366,0.00012875,2]
[326840230,1715500238364,-15698.69096177,0.0001288,2]
[326840231,1715500238400,-710.733,0.0001288,2]
[326840232,1715500238412,-804.39789839,0.0001288,2]
[326840233,1715500238443,-11754.10952141,0.0001288,2]
[326840249,1715500239970,-807.50002,0.0001288,2]
[326840250,1715500239982,-1153.5,0.0001288,2]
[326840251,1715500240027,-496.27636977,0.0001288,2]
[326840252,1715500240039,-1928.1375,0.0001288,2]
[326840253,1715500240135,-17344.44827563,0.0001288,2]
[326840257,1715500242593,-1034.268095,7.499e-05,2]
[326840258,1715500242607,-5925.19851255,7.499e-05,2]
[326840259,1715500242622,-1460.12672117,7.499e-05,2]
[326840260,1715500242637,-309.3200002,7.499e-05,2]
[326840300,1715500244439,-465.35478072,7.499e-05,2]
[326840301,1715500244448,-15787.2172005,0.0001288,2]
[326840302,1715500244460,-867.11870689,0.0001288,2]
[326840303,1715500244472,-373.5132,0.0001288,2]
[326840304,1715500244488,-24114.26977452,0.0001288,2]
[326840305,1715500244504,-94903.51476957,0.0001288,2]
[326840306,1715500244513,-5597.4951,0.00012899,2]
[326840307,1715500244523,-157.62223486,0.00012899,2]
[326840308,1715500244532,-1000.0,0.000129,2]
[326840309,1715500244541,-168.97879647,0.000129,2]
[326840310,1715500244550,-54264.2211,0.000129,2]
[326840311,1715500244559,-15010.45349045,0.000129,2]
[326840312,1715500244568,-1748.75972245,0.000129,2]
[326840313,1715500244578,-1748.7597224,0.000129,2]
[326840314,1715500244587,-1748.7597224,0.000129,2]
[326840315,1715500244596,-1748.7597224,0.000129,2]
[326840316,1715500244605,-1748.7597224,0.000129,2]
[326840317,1715500244614,-1748.7597224,0.000129,2]
[326840318,1715500244623,-1748.7597224,0.000129,2]
[326840319,1715500244632,-1748.7597224,0.000129,2]
[326840320,1715500244641,-334.95062447,0.000129,2]
[326840321,1715500244650,-166.34515991,0.00012989,2]
[326840322,1715500244660,-161.0,0.0001299,2]
[326840323,1715500244671,-155.0,0.00012997,2]
[326840324,1715500244681,-155.0,0.00012997,2]
[326840325,1715500244690,-288.94865998,0.00012997,2]
[326840326,1715500244699,-528.15150967,0.00012997,2]
[326840327,1715500244708,-155.0,0.00012997,2]
[326840328,1715500244718,-284.41540449,0.00012997,2]
[326840329,1715500244727,-156.35353321,0.00012997,2]
[326840330,1715500244739,-1000.0,0.00012998,2]
[326840331,1715500244748,-2062.26100645,0.00012998,2]
[326840332,1715500244758,-420.78002619,0.00012998,2]
[326840333,1715500244767,-204.29691705,0.00012999,2]
[326840334,1715500244777,-2640.25452533,0.00012999,2]
[326840335,1715500244787,-295.19688457,0.00012999,2]
[326840336,1715500244800,-155.74584434,0.00012999,2]
[326840337,1715500244810,-157.96855427,0.00012999,2]
[326840338,1715500244819,-3851.4284239,0.00012999,2]
[326840339,1715500244828,-1093.97727181,0.00012999,3]
[326840340,1715500244840,-1093.97727181,0.00012999,3]
[326840341,1715500244849,-1093.97727181,0.00012999,3]
[326840342,1715500244859,-329907.2738604,0.00012999,2]
[326840343,1715500244928,-880.21195323,0.00012999,2]
[326840345,1715500245842,-155.13036121,7.499e-05,2]
[326840346,1715500245851,-298.18964477,0.00012999,2]
[326840347,1715500245897,-826.11745518,0.00012999,2]
[326840348,1715500246014,-2608.74402512,0.00012999,2]
[326840349,1715500246025,-7016.38830538,0.00012999,2]
[326840350,1715500246037,-1611.69,0.00012999,2]
[326840351,1715500246048,-26462.50580397,0.00012999,2]
[326840352,1715500246065,-2460.98823099,0.00012999,2]
[326840353,1715500246125,-255.637,0.00012999,2]
[326840368,1715501353093,-155.0,7.453e-05,2]
[326840369,1715501353120,-155.0,7.454e-05,2]
[326840370,1715501353145,-1519.5922,7.455e-05,2]
[326840371,1715501355404,-155.0,7.452e-05,2]
[326840372,1715501355426,-840.95391263,7.455e-05,2]
[326840373,1715501355448,-213.33178934,7.456e-05,2]
[326840374,1715501355471,-213.33178934,7.457e-05,2]
[326840375,1715501355495,-213.33178934,7.457e-05,2]
[326840376,1715501355516,-5597.1832,7.46e-05,2]
[326840377,1715501355539,-10074.92976,7.46e-05,2]
[326840378,1715501355560,-10074.92976,7.46e-05,2]
[326840379,1715501355581,-10074.92976,7.46e-05,2]
[326840380,1715501355602,-150.0,7.469e-05,2]
[326840381,1715501355626,-150.0,7.469e-05,2]
[326840382,1715501355646,-10074.92976,7.47e-05,2]
[326840383,1715501355669,-75.93227341,7.499e-05,2]
[326840384,1715501363313,-7645.65146629,7.46e-05,2]
[326840390,1715501432074,-1788.03912655,7.459e-05,2]
[326840391,1715501432084,-2429.27829371,7.46e-05,2]
[326840392,1715501432093,-79.06772659,7.499e-05,2]
[326840393,1715501432102,-210.0,8.216e-05,2]
[326840394,1715501432111,-155.0,0.0001,2]
[326840395,1715501432120,-208.40272462,0.00010071,2]
[326840396,1715501432129,-499.99,0.00010072,2]
[326840397,1715501432138,-250.0,0.0001068,2]
[326840398,1715501432146,-23900.0,0.00010751,2]
[326840399,1715501432156,-1647.48,0.00010959,2]
[326840400,1715501432165,-250.0,0.00011022,2]
[326840401,1715501432174,-335.89,0.00011118,2]
[326840402,1715501432183,-5339.5,0.00011129,2]
[326840403,1715501432192,-152.49,0.00011234,2]
[326840404,1715501432201,-1000.0,0.00011265,2]
[326840405,1715501432210,-150.99,0.0001127,2]
[326840406,1715501432219,-1034.18188007,0.00011271,2]
[326840407,1715501432228,-152.49,0.00011527,2]
[326840408,1715501432237,-753.68941219,0.00011698,2]
[326840409,1715501432246,-150.99,0.00011698,2]
[326840410,1715501432254,-152.49,0.0001182,2]
[326840411,1715501432263,-155.0,0.00012215,2]
[326840412,1715501432272,-400.0,0.00012216,2]
[326840413,1715501432281,-1294.66870837,0.00012347,2]
[326840414,1715501432290,-174.70943139,0.00012348,2]
[326840415,1715501432299,-22392.0,0.00012396,3]
[326840416,1715501432308,-1000.0,0.00012673,2]
[326840417,1715501432316,-354.7641,0.0001278,2]
[326840418,1715501432325,-1712.2078,0.0001278,2]
[326840419,1715501432334,-1000.0,0.0001278,2]
[326840420,1715501432343,-2500.0,0.00012897,2]
[326840421,1715501432352,-60045.1073,0.00012899,2]
[326840422,1715501432361,-170.73232031,0.00012899,2]
[326840423,1715501432370,-739.24072356,0.000129,2]
[326840424,1715501432379,-170.35592764,0.000129,2]
[326840425,1715501432388,-14348.21658925,0.000129,2]
[326840426,1715501432397,-223.19369892,0.000129,2]
[326840427,1715501432409,-2422.29849078,0.000129,2]
[326840429,1715501432419,-153.19217043,0.000129,2]
[326840430,1715501432428,-155.15597951,0.0001299,2]
[326840431,1715501432438,-150.86,0.0001299,2]
[326840432,1715501432447,-179.59441389,0.00012997,2]
[326840433,1715501432457,-209.37963916,0.00012997,2]
[326840435,1715501432466,-155.54297921,0.00012997,2]
[326840437,1715501432475,-194.9540352,0.00012997,2]
[326840439,1715501432485,-155.4170976,0.00012997,2]
[326840441,1715501432495,-1271.62688925,0.00012997,2]
[326840443,1715501432504,-436.07770756,0.00012997,2]
[326840444,1715501432513,-198.26100783,0.00012997,2]
[326840447,1715501432522,-1143.7171414,0.00012997,2]
[326840448,1715501432531,-218.17140341,0.00012997,2]
[326840450,1715501432540,-198.16452107,0.00012997,2]
[326840452,1715501432549,-2054.34176614,0.00012997,2]
[326840454,1715501432558,-155.0,0.00012998,2]
[326840456,1715501432566,-157.96855427,0.00012998,2]
[326840458,1715501432575,-157.60689553,0.00012998,2]
[326840460,1715501432584,-156.74965728,0.00012998,2]
[326840462,1715501432594,-241131.01113713,0.00012999,2]
[326840464,1715501432603,-1925.71421195,0.00012999,2]
[326840466,1715501432612,-1376.88012733,0.00012999,2]
[326840468,1715501432621,-2000.0,0.00012999,2]
[326840470,1715501432630,-3913.0025,0.00012999,2]
[326840472,1715501432639,-200.0,0.00012999,2]
[326840474,1715501432648,-1400.0,0.00012999,2]
[326840476,1715501432658,-1400.0,0.00012999,2]
[326840479,1715501432668,-1400.0,0.00012999,2]
[326840481,1715501432678,-1400.0,0.00012999,2]
[326840483,1715501432687,-1400.0,0.00012999,2]
[326840484,1715501432697,-1400.0,0.00012999,2]
[326840486,1715501432706,-1400.0,0.00012999,2]
[326840489,1715501432715,-1400.0,0.00012999,2]
[326840491,1715501432724,-1400.0,0.00012999,2]
[326840493,1715501432733,-1400.0,0.00012999,2]
[326840495,1715501432742,-2000.0,0.00012999,2]
[326840497,1715501432752,-200.0,0.00012999,2]
[326840498,1715501432762,-3311.53562735,0.00012999,2]
[326840500,1715501432771,-200.0,0.00012999,2]
[326840502,1715501432781,-1810.69182,0.00012999,2]
[326840503,1715501432790,-200.0,0.00012999,2]
[326840504,1715501432799,-65001.46349122,0.00013,2]
[326840505,1715501432809,-125864.53286651,0.00013,2]
[326840506,1715501432821,-82982.30087,0.00013,2]
[326840507,1715501432845,-1647.10744656,0.00013,2]
[326840508,1715501432856,-1724.74005624,0.00013,2]
[326840509,1715501432867,-684.71908266,0.00013,2]
[326840510,1715501432878,-21760.50001,0.00013,2]
[326840511,1715501433060,-10000.272,0.00013,2]
[326840529,1715501438294,-18115.20279439,0.00013,2]
[326840530,1715501438305,-20253.01602319,0.00013,2]
[326840531,1715501438315,-2010.66061732,0.00013,2]
[326840532,1715501438326,-5180.7408274,0.00013,2]
[326840533,1715501438336,-7318.70059285,0.00013,2]
[326840534,1715501438347,-269449.71025861,0.00013,2]
[326840535,1715501438358,-23231.69155553,0.00013,2]
[326840576,1715501440145,-583.44,0.00013,2]
[326840577,1715501440313,-355.72425126,0.00013,2]
[326840578,1715501440325,-1722.38772216,0.00013,2]
[326840579,1715501440335,-364.77934024,0.00013,2]
[326840588,1715501443187,-839.38160552,0.00013,2]
[326840589,1715501443351,-629.50642589,0.00013,2]
[326840594,1715501446266,-289.80093387,0.00012999,2]
[326840595,1715501446276,-121.13906618,0.00012999,2]
[326840596,1715501446318,-502.34256162,0.00012999,2]
[326840597,1715501446327,-11799.13252803,0.00013,2]
[326840601,1715501983234,3380.60387512,0.000119,3]
[326840614,1715502395097,-209.24805256,7.358e-05,2]
[326840624,1715502551092,-1034.99221284,7.358e-05,2]
[326840625,1715502551111,-8927.68414901,7.359e-05,2]
[326840626,1715502560111,-12754.27076683,7.359e-05,2]
[326840627,1715502560133,-2906.88093468,7.359e-05,2]
[326840628,1715502560154,-211.03734685,7.46e-05,2]
[326840629,1715502560175,-147.59795162,9.254e-05,2]
[326840630,1715502589717,-36.43204838,9.254e-05,2]
[326840631,1715502589742,-161.53737918,0.00011322,2]
[326840632,1715502589768,-2802.03057244,0.00011396,2]
[326840633,1715502595333,-2388.0,0.00011396,2]
[326840635,1715502632293,-852.94314479,0.000113,2]
[326840636,1715502632306,-315.405,0.000113,2]
[326840637,1715502632323,-418.56987981,0.000113,2]
[326840638,1715502632333,-4902.89161385,0.00011396,2]
[326840639,1715502632344,-13807.07781371,0.00011396,2]
[326840640,1715502632354,-320.0,0.00011422,2]
[326840641,1715502632364,-1231.73,0.00011423,2]
[326840642,1715502632373,-250.0,0.00011445,2]
[326840643,1715502632383,-2594.16,0.0001145,2]
[326840644,1715502632392,-2427.62,0.00011452,2]
[326840645,1715502632402,-11331.25,0.00011454,2]
[326840646,1715502632411,-170.38,0.00011454,2]
[326840647,1715502632421,-150.99,0.00011454,2]
[326840648,1715502632430,-295.06792433,0.00011454,2]
[326840649,1715502632458,-204.92207567,0.00011454,2]
[326840650,1715502632468,-150.0,0.00011454,2]
[326840651,1715502632477,-200.0,0.00011455,2]
[326840652,1715502632487,-250.0,0.00011466,2]
[326840653,1715502632496,-159.26,0.0001156,2]
[326840654,1715502632506,-161.53737916,0.00011585,2]
[326840655,1715502632517,-1000.0,0.00011603,2]
[326840656,1715502632527,-1477.44,0.0001166,2]
[326840657,1715502632537,-150.99,0.0001166,2]
[326840658,1715502632547,-826.3715483,0.00011766,2]
[326840659,1715502632556,-2107.02596863,0.0001179,2]
[326840660,1715502632569,-58.23183137,0.0001179,2]
[326840661,1715502632578,-161.53737916,0.00011848,2]
[326840662,1715502632588,-31500.0,0.0001189,2]
[326840663,1715502632597,-161.53737916,0.00012111,2]
[326840664,1715502632607,-159.26,0.00012163,2]